fUSD/lending_fUSD_20250623
["ID","MTS","AMOUNT","RATE_DAILY","PERIOD"]
[367112635,1750662698072,-490.0,0.00028767,3]
[367112636,1750662698081,-490.0,0.00028767,3]
[367112637,1750662698091,-861.6,0.00028767,3]
[367112638,1750662698102,-2663.87,0.00028767,3]
[367112639,1750662698111,-731.27,0.00028767,3]
[367112640,1750662698120,-490.0,0.00028767,3]
[367112641,1750662698130,-1052.0,0.00028767,3]
[367112642,1750662698139,-560.0,0.00028767,3]
[367112643,1750662698148,-1117.5,0.00028767,3]
[367112644,1750662698158,-490.0,0.00028767,3]
[367112645,1750662698167,-921.04,0.00028767,3]
[367112646,1750662698177,-783.55,0.00028767,3]
[367112647,1750662698186,-600.11,0.00028767,3]
[367112648,1750662698196,-490.0,0.00028767,3]
[367112649,1750662698205,-785.27,0.00028767,3]
[367112650,1750662698214,-1688.41,0.00028767,3]
[367112651,1750662698224,-595.61,0.00028767,3]
[367112652,1750662698232,-1726.17,0.00028767,3]
[367112653,1750662698243,-950.58,0.00028767,3]
[367112654,1750662698253,-490.0,0.00028767,3]
[367112655,1750662698263,-1953.41,0.00028767,3]
[367112656,1750662698272,-490.0,0.00028767,3]
[367112657,1750662698281,-524.07454754,0.00028767,3]
[367112658,1750662698290,-523.44,0.00028767,3]
[367112659,1750662698300,-603.07,0.00028767,3]
[367112660,1750662698309,-1456.32,0.00028767,3]
[367112661,1750662698318,-1698.32,0.00028767,3]
[367112662,1750662698328,-501.63,0.00028767,3]
[367112663,1750662698337,-490.0,0.00028767,3]
[367112664,1750662698347,-490.0,0.00028767,3]
[367112665,1750662698357,-273.47060778,0.00028767,3]
[367112666,1750662698367,-490.0,0.00028767,3]
[367112667,1750662698376,-1007.06,0.00028767,3]
[367112668,1750662698386,-1681.01,0.00028767,3]
[367112669,1750662698395,-1708.4,0.00028767,3]
[367112670,1750662698404,-490.0,0.00028767,3]
[367112671,1750662698414,-873.29,0.00028767,3]
[367112672,1750662698423,-1098.59,0.00028767,3]
[367112673,1750662698433,-1944.53,0.00028767,3]
[367112674,1750662698442,-490.0,0.00028767,3]
[367112675,1750662698451,-2433.81,0.00028767,3]
[367112676,1750662698460,-1247.14,0.00028767,3]
[367112677,1750662698470,-501.38,0.00028767,3]
[367112678,1750662698479,-750.42,0.00028767,3]
[367112679,1750662698488,-377.9494786,0.00028767,3]
[367112680,1750662698497,-577.0,0.00028767,3]
[367112681,1750662698507,-662.45,0.00028767,3]
[367112682,1750662698517,-490.0,0.00028767,3]
[367112683,1750662698526,-1551.77,0.00028767,3]
[367112684,1750662698535,-490.0,0.00028767,3]
[367112685,1750662698544,-1650.44,0.00028767,3]
[367112686,1750662698553,-703.59,0.00028767,3]
[367112687,1750662698562,-529.91,0.00028767,3]
[367112688,1750662698571,-490.0,0.00028767,3]
[367112689,1750662698580,-181.27469993,0.00028767,3]
[367112690,1750662698589,-490.0,0.00028767,3]
[367112691,1750662698599,-490.0,0.00028767,3]
[367112692,1750662698608,-788.62,0.00028767,3]
[367112693,1750662698618,-912.47,0.00028767,3]
[367112694,1750662698627,-1251.29,0.00028767,3]
[367112695,1750662698636,-490.0,0.00028767,3]
[367112696,1750662698645,-490.0,0.00028767,3]
[367112697,1750662698654,-655.66,0.00028767,3]
[367112698,1750662698663,-675.57,0.00028767,3]
[367112699,1750662698672,-300.0,0.00028767,3]
[367112700,1750662698681,-490.0,0.00028767,3]
[367112701,1750662698691,-1664.2,0.00028767,3]
[367112702,1750662698700,-1679.9,0.00028767,3]
[367112703,1750662698709,-1433.27,0.00028767,3]
[367112704,1750662698718,-490.0,0.00028767,3]
[367112705,1750662698728,-1066.4,0.00028767,3]
[367112706,1750662698738,-500.0,0.00028767,2]
[367112707,1750662698748,-504.0,0.00028767,2]
[367112708,1750662698757,-572.95,0.00028767,3]
[367112709,1750662698766,-490.0,0.00028767,3]
[367112710,1750662698775,-1605.51,0.00028767,3]
[367112711,1750662698785,-490.0,0.00028767,3]
[367112712,1750662698795,-490.0,0.00028767,3]
[367112713,1750662698805,-1690.95,0.00028767,3]
[367112714,1750662698814,-490.0,0.00028767,3]
[367112715,1750662698823,-490.0,0.00028767,3]
[367112716,1750662698832,-1674.28,0.00028767,3]
[367112717,1750662698842,-490.0,0.00028767,3]
[367112718,1750662698853,-638.77,0.00028767,3]
[367112719,1750662698862,-1574.11,0.00028767,3]
[367112720,1750662698871,-378.81,0.00028767,3]
[367112721,1750662698880,-684.38,0.00028767,3]
[367112722,1750662698890,-490.0,0.00028767,3]
[367112723,1750662698900,-1278.36,0.00028767,3]
[367112724,1750662698909,-905.6,0.00028767,3]
[367112725,1750662698918,-1682.39,0.00028767,3]
[367112726,1750662698927,-1410.38,0.00028767,3]
[367112727,1750662698937,-1126.22,0.00028767,3]
[367112728,1750662698947,-1883.69,0.00028767,3]
[367112729,1750662698958,-7415.21,0.00028767,3]
[367112730,1750662698967,-2332.56,0.00028767,3]
[367112731,1750662698976,-490.0,0.00028767,3]
[367112732,1750662698985,-490.0,0.00028767,3]
[367112733,1750662698994,-1248.93,0.00028767,3]
[367112734,1750662699003,-490.0,0.00028767,3]
[367112735,1750662699012,-1449.04,0.00028767,3]
[367112736,1750662699021,-849.69,0.00028767,3]
[367112737,1750662699030,-883.32,0.00028767,3]
[367112738,1750662699040,-490.0,0.00028767,3]
[367112739,1750662699049,-587.88,0.00028767,3]
[367112740,1750662699058,-901.3,0.00028767,3]
[367112741,1750662699067,-490.0,0.00028767,3]
[367112742,1750662699076,-1164.04,0.00028767,3]
[367112743,1750662699085,-490.0,0.00028767,3]
[367112744,1750662699094,-490.0,0.00028767,3]
[367112745,1750662699105,-1753.14,0.00028767,3]
[367112746,1750662699115,-4073.96,0.00028767,3]
[367112747,1750662699124,-10399.38,0.00028767,3]
[367112748,1750662699134,-490.0,0.00028767,3]
[367112749,1750662699143,-580.67,0.00028767,3]
[367112750,1750662699153,-1448.46,0.00028767,3]
[367112751,1750662699162,-836.73,0.00028767,3]
[367112752,1750662699172,-918.93,0.00028767,3]
[367112753,1750662699181,-526.35,0.00028767,3]
[367112754,1750662699190,-1355.08,0.00028767,3]
[367112755,1750662699200,-6824.52,0.00028767,3]
[367112756,1750662699209,-1900.51,0.00028767,3]
[367112757,1750662699219,-1016.76,0.00028767,3]
[367112758,1750662699229,-3401.6,0.00028767,3]
[367112759,1750662699238,-490.0,0.00028767,3]
[367112760,1750662699247,-3966.47,0.00028767,3]
[367112761,1750662699256,-1741.72,0.00028767,3]
[367112762,1750662699265,-490.0,0.00028767,3]
[367112763,1750662699274,-490.0,0.00028767,3]
[367112764,1750662699283,-490.0,0.00028767,3]
[367112765,1750662699293,-909.73,0.00028767,3]
[367112766,1750662699302,-608.52,0.00028767,3]
[367112767,1750662699312,-490.0,0.00028767,3]
[367112768,1750662699321,-934.07,0.00028767,3]
[367112769,1750662699330,-4949.36,0.00028767,3]
[367112770,1750662699339,-490.0,0.00028767,3]
[367112771,1750662699350,-2915.88,0.00028767,3]
[367112772,1750662699360,-490.0,0.00028767,3]
[367112773,1750662699369,-1585.93,0.00028767,3]
[367112774,1750662699379,-490.0,0.00028767,3]
[367112775,1750662699389,-490.0,0.00028767,3]
[367112776,1750662699399,-18062.45,0.00028767,3]
[367112777,1750662699409,-814.19,0.00028767,3]
[367112778,1750662699419,-3468.99,0.00028767,3]
[367112779,1750662699428,-1570.58,0.00028767,3]
[367112780,1750662699438,-1672.97,0.00028767,3]
[367112781,1750662699447,-789.6,0.00028767,3]
[367112782,1750662699459,-798.22,0.00028767,3]
[367112783,1750662699469,-1533.06,0.00028767,3]
[367112784,1750662699478,-1681.4,0.00028767,3]
[367112785,1750662699487,-490.0,0.00028767,3]
[367112786,1750662699497,-528.64,0.00028767,3]
[367112787,1750662699508,-1108.02,0.00028767,3]
[367112788,1750662699520,-1980.76,0.00028767,3]
[367112789,1750662699530,-2594.4,0.00028767,3]
[367112790,1750662699539,-490.0,0.00028767,3]
[367112791,1750662699549,-1623.55,0.00028767,3]
[367112792,1750662699558,-490.0,0.00028767,3]
[367112793,1750662699568,-891.21,0.00028767,3]
[367112794,1750662699577,-1019.18,0.00028767,3]
[367112795,1750662699588,-3127.29,0.00028767,3]
[367112796,1750662699600,-1174.99,0.00028767,3]
[367112797,1750662699610,-490.0,0.00028767,3]
[367112798,1750662699619,-1569.21,0.00028767,3]
[367112799,1750662699629,-490.0,0.00028767,3]
[367112800,1750662699639,-1940.59,0.00028767,3]
[367112801,1750662699648,-1749.09,0.00028767,3]
[367112802,1750662699658,-2329.34,0.00028767,3]
[367112803,1750662699668,-664.92,0.00028767,3]
[367112804,1750662699677,-1830.85,0.00028767,3]
[367112805,1750662699687,-1700.21,0.00028767,3]
[367112806,1750662699696,-490.0,0.00028767,3]
[367112807,1750662699706,-2769.81,0.00028767,3]
[367112808,1750662699716,-490.0,0.00028767,3]
[367112809,1750662699725,-6713.02,0.00028767,3]
[367112810,1750662699734,-777.56,0.00028767,3]
[367112811,1750662699744,-2394.73,0.00028767,3]
[367112812,1750662699753,-826.09,0.00028767,3]
[367112813,1750662699762,-1294.78,0.00028767,3]
[367112814,1750662699771,-490.0,0.00028767,3]
[367112815,1750662699781,-760.04,0.00028767,3]
[367112816,1750662699790,-490.0,0.00028767,3]
[367112817,1750662699799,-555.71,0.00028767,3]
[367112818,1750662699809,-1626.24,0.00028767,3]
[367112819,1750662699819,-4056.64,0.00028767,3]
[367112820,1750662699828,-713.4,0.00028767,3]
[367112821,1750662699838,-490.0,0.00028767,3]
[367112822,1750662699847,-1498.64,0.00028767,3]
[367112823,1750662699857,-1457.21,0.00028767,3]
[367112824,1750662699866,-490.0,0.00028767,3]
[367112825,1750662699875,-737.54,0.00028767,3]
[367112826,1750662699884,-1307.83,0.00028767,3]
[367112827,1750662699894,-728.06,0.00028767,3]
[367112828,1750662699903,-490.0,0.00028767,3]
[367112829,1750662699912,-1832.35,0.00028767,3]
[367112830,1750662699922,-1380.67,0.00028767,3]
[367112831,1750662699931,-490.0,0.00028767,3]
[367112832,1750662699941,-2228.14,0.00028767,3]
[367112833,1750662699950,-490.0,0.00028767,3]
[367112834,1750662699960,-2372.02,0.00028767,3]
[367112835,1750662699969,-490.0,0.00028767,3]
[367112836,1750662699978,-3318.96,0.00028767,3]
[367112837,1750662699988,-709.01,0.00028767,3]
[367112838,1750662699997,-862.45,0.00028767,3]
[367112839,1750662700006,-788.8,0.00028767,3]
[367112840,1750662700016,-490.0,0.00028767,3]
[367112841,1750662700026,-1200.13,0.00028767,3]
[367112842,1750662700035,-1916.86,0.00028767,3]
[367112843,1750662700045,-490.0,0.00028767,3]
[367112844,1750662700054,-678.77,0.00028767,3]
[367112845,1750662700063,-4654.08,0.00028767,3]
[367112846,1750662700072,-1366.52,0.00028767,3]
[367112847,1750662700081,-515.04,0.00028767,3]
[367112848,1750662700091,-788.62,0.00028767,3]
[367112849,1750662700101,-553.78,0.00028767,3]
[367112850,1750662700110,-1578.33,0.00028767,3]
[367112851,1750662700119,-1107.26,0.00028767,3]
[367112852,1750662700129,-498.97,0.00028767,3]
[367112853,1750662700139,-7394.17,0.00028767,3]
[367112854,1750662700149,-1624.99,0.00028767,3]
[367112855,1750662700159,-490.0,0.00028767,3]
[367112856,1750662700169,-490.0,0.00028767,3]
[367112857,1750662700178,-1036.64,0.00028767,3]
[367112858,1750662700188,-490.0,0.00028767,3]
[367112859,1750662700198,-500.0,0.00028767,3]
[367112860,1750662700208,-2834.49,0.00028767,3]
[367112861,1750662700218,-12536.04,0.00028767,3]
[367112862,1750662700227,-3543.99,0.00028767,3]
[367112863,1750662700237,-490.0,0.00028767,3]
[367112864,1750662700247,-1768.62,0.00028767,3]
[367112865,1750662700256,-490.0,0.00028767,3]
[367112866,1750662700266,-497.45,0.00028767,3]
[367112867,1750662700275,-490.0,0.00028767,3]
[367112868,1750662700284,-490.0,0.00028767,3]
[367112869,1750662700294,-1947.91,0.00028767,3]
[367112870,1750662700303,-510.26,0.00028767,3]
[367112871,1750662700312,-1619.96,0.00028767,3]
[367112872,1750662700321,-510.41,0.00028767,3]
[367112873,1750662700331,-5190.35,0.00028767,3]
[367112874,1750662700340,-9852.89,0.00028767,3]
[367112875,1750662700351,-490.0,0.00028767,3]
[367112876,1750662700361,-1552.44,0.00028767,3]
[367112877,1750662700371,-814.87,0.00028767,3]
[367112878,1750662700381,-2783.14,0.00028767,3]
[367112879,1750662700390,-1717.08,0.00028767,3]
[367112880,1750662700399,-490.0,0.00028767,3]
[367112881,1750662700409,-2330.84,0.00028767,3]
[367112882,1750662700418,-1630.26,0.00028767,3]
[367112883,1750662700428,-752.02,0.00028767,3]
[367112884,1750662700437,-490.0,0.00028767,3]
[367112885,1750662700447,-1618.67,0.00028767,3]
[367112886,1750662700457,-490.0,0.00028767,3]
[367112887,1750662700467,-1151.97,0.00028767,3]
[367112888,1750662700476,-915.84,0.00028767,3]
[367112889,1750662700485,-1776.65,0.00028767,3]
[367112890,1750662700495,-670.37,0.00028767,3]
[367112891,1750662700504,-3986.65,0.00028767,3]
[367112892,1750662700518,-1960.82,0.00028767,3]
[367112893,1750662700527,-1591.01,0.00028767,3]
[367112894,1750662700536,-6065.53,0.00028767,3]
[367112895,1750662700546,-1605.38,0.00028767,3]
[367112896,1750662700556,-1642.63,0.00028767,3]
[367112897,1750662700565,-798.12,0.00028767,3]
[367112898,1750662700575,-490.0,0.00028767,3]
[367112899,1750662700584,-490.0,0.00028767,3]
[367112900,1750662700593,-1292.66,0.00028767,3]
[367112901,1750662700604,-490.0,0.00028767,3]
[367112902,1750662700613,-4219.23,0.00028767,3]
[367112903,1750662700623,-2292.5,0.00028767,3]
[367112904,1750662700745,-2903.63,0.00028767,3]
[367112905,1750662700755,-1562.1,0.00028767,3]
[367112906,1750662700764,-765.43,0.00028767,3]
[367112907,1750662700774,-1872.32,0.00028767,3]
[367112908,1750662700783,-3240.53,0.00028767,3]
[367112909,1750662700793,-492.32,0.00028767,3]
[367112910,1750662700803,-1499.13,0.00028767,3]
[367112911,1750662700813,-1684.89,0.00028767,3]
[367112912,1750662700823,-2262.37,0.00028767,3]
[367112913,1750662700833,-1822.31,0.00028767,3]
[367112914,1750662700843,-745.32,0.00028767,3]
[367112915,1750662700854,-490.0,0.00028767,3]
[367112916,1750662700863,-490.0,0.00028767,3]
[367112917,1750662700873,-490.0,0.00028767,3]
[367112918,1750662700882,-1565.33,0.00028767,3]
[367112919,1750662700892,-3248.59,0.00028767,3]
[367112920,1750662700901,-1599.78,0.00028767,3]
[367112921,1750662700911,-490.0,0.00028767,3]
[367112922,1750662700921,-1190.83,0.00028767,3]
[367112923,1750662700931,-795.18,0.00028767,3]
[367112924,1750662700941,-490.0,0.00028767,3]
[367112925,1750662700951,-8785.1,0.00028767,3]
[367112926,1750662700960,-638.67,0.00028767,3]
[367112927,1750662700970,-849.6,0.00028767,3]
[367112928,1750662700979,-1583.66,0.00028767,3]
[367112929,1750662700988,-1787.94,0.00028767,3]
[367112930,1750662700998,-1444.68,0.00028767,3]
[367112931,1750662701007,-1335.88,0.00028767,3]
[367112932,1750662701016,-490.0,0.00028767,3]
[367112933,1750662701026,-948.02,0.00028767,3]
[367112934,1750662701035,-490.0,0.00028767,3]
[367112935,1750662701044,-507.9,0.00028767,3]
[367112936,1750662701054,-3963.91,0.00028767,3]
[367112937,1750662701072,-490.0,0.00028767,3]
[367112938,1750662701082,-1578.99,0.00028767,3]
[367112939,1750662701091,-1445.82,0.00028767,3]
[367112940,1750662701102,-1285.59,0.00028767,3]
[367112941,1750662701112,-490.0,0.00028767,3]
[367112942,1750662701121,-490.0,0.00028767,3]
[367112943,1750662701131,-490.0,0.00028767,3]
[367112944,1750662701141,-490.0,0.00028767,3]
[367112945,1750662701151,-728.45,0.00028767,3]
[367112946,1750662701160,-490.0,0.00028767,3]
[367112947,1750662701170,-806.96,0.00028767,3]
[367112948,1750662701179,-490.0,0.00028767,3]
[367112949,1750662701188,-1797.81,0.00028767,3]
[367112950,1750662701198,-1831.64,0.00028767,3]
[367112951,1750662701207,-1432.05,0.00028767,3]
[367112952,1750662701217,-919.07,0.00028767,3]
[367112953,1750662701227,-14900.62,0.00028767,3]
[367112954,1750662701237,-1833.67,0.00028767,3]
[367112955,1750662701246,-540.2023824,0.00028767,3]
[367112956,1750662701256,-2078.39,0.00028767,3]
[367112957,1750662701266,-510.45,0.00028767,3]
[367112958,1750662701276,-490.0,0.00028767,3]
[367112959,1750662701286,-490.0,0.00028767,3]
[367112960,1750662701296,-4833.93,0.00028767,3]
[367112961,1750662701306,-490.0,0.00028767,3]
[367112962,1750662701315,-1601.31,0.00028767,3]
[367112963,1750662701325,-759.06,0.00028767,3]
[367112964,1750662701336,-873.41,0.00028767,3]
[367112965,1750662701346,-791.68,0.00028767,3]
[367112966,1750662701357,-4669.42,0.00028767,3]
[367112967,1750662701367,-1693.53,0.00028767,3]
[367112968,1750662701376,-990.18,0.00028767,3]
[367112969,1750662701386,-1034.99,0.00028767,3]
[367112970,1750662701396,-490.0,0.00028767,3]
[367112971,1750662701406,-1620.6,0.00028767,3]
[367112972,1750662701416,-1653.45,0.00028767,3]
[367112973,1750662701426,-1389.7,0.00028767,3]
[367112974,1750662701436,-3451.15,0.00028767,3]
[367112975,1750662701446,-490.0,0.00028767,3]
[367112976,1750662701456,-1000.0,0.00028767,3]
[367112977,1750662701466,-490.0,0.00028767,3]
[367112978,1750662701475,-993.54,0.00028767,3]
[367112979,1750662701486,-2416.24,0.00028767,3]
[367112980,1750662701495,-490.0,0.00028767,3]
[367112981,1750662701505,-566.41,0.00028767,3]
[367112982,1750662701519,-11090.94,0.00028767,3]
[367112983,1750662701528,-1221.42,0.00028767,3]
[367112984,1750662701538,-1799.28,0.00028767,3]
[367112985,1750662701548,-2070.18,0.00028767,3]
[367112986,1750662701559,-1701.67,0.00028767,3]
[367112987,1750662701569,-1378.47,0.00028767,3]
[367112988,1750662701579,-1087.15,0.00028767,3]
[367112989,1750662701590,-1736.17,0.00028767,3]
[367112990,1750662701600,-1351.61,0.00028767,3]
[367112991,1750662701610,-490.0,0.00028767,3]
[367112992,1750662701620,-1816.97,0.00028767,3]
[367112993,1750662701630,-1834.95,0.00028767,3]
[367112994,1750662701640,-490.0,0.00028767,3]
[367112995,1750662701651,-709.09,0.00028767,3]
[367112996,1750662701662,-1672.0,0.00028767,3]
[367112997,1750662701672,-1571.12,0.00028767,3]
[367112998,1750662701682,-490.0,0.00028767,3]
[367112999,1750662701692,-490.0,0.00028767,3]
[367113000,1750662701702,-4884.01,0.00028767,3]
[367113001,1750662701712,-1729.07,0.00028767,3]
[367113002,1750662701722,-8073.75,0.00028767,3]
[367113003,1750662701731,-1652.26,0.00028767,3]
[367113004,1750662701741,-718.8,0.00028767,3]
[367113005,1750662701751,-490.0,0.00028767,3]
[367113006,1750662701762,-867.32,0.00028767,3]
[367113007,1750662701773,-30050.84,0.00028767,3]
[367113008,1750662701783,-490.0,0.00028767,3]
[367113009,1750662701794,-1482.76,0.00028767,3]
[367113010,1750662701803,-1513.2,0.00028767,3]
[367113011,1750662701812,-1869.9,0.00028767,3]
[367113012,1750662701822,-490.0,0.00028767,3]
[367113013,1750662701832,-490.0,0.00028767,3]
[367113014,1750662701841,-490.0,0.00028767,3]
[367113015,1750662701852,-825.47,0.00028767,3]
[367113016,1750662701861,-1291.21,0.00028767,3]
[367113017,1750662701871,-164.31430361,0.00028767,3]
[367113018,1750662701881,-529.57,0.00028767,3]
[367113019,1750662701891,-1000.93,0.00028767,3]
[367113020,1750662701901,-1013.98,0.00028767,2]
[367113021,1750662701911,-2626.45,0.00028767,3]
[367113022,1750662701921,-1301.95,0.00028767,3]
[367113023,1750662701931,-749.71,0.00028767,3]
[367113024,1750662701940,-914.97,0.00028767,3]
[367113025,1750662701952,-1553.91,0.00028767,3]
[367113026,1750662701962,-5331.91,0.00028767,3]
[367113027,1750662701972,-6188.74,0.00028767,3]
[367113028,1750662701981,-2204.74,0.00028767,3]
[367113029,1750662701992,-733.17,0.00028767,3]
[367113030,1750662702002,-742.07,0.00028767,3]
[367113031,1750662702011,-1201.89,0.00028767,3]
[367113032,1750662702021,-866.05,0.00028767,3]
[367113033,1750662702030,-5637.09,0.00028767,3]
[367113034,1750662702040,-716.87,0.00028767,3]
[367113035,1750662702050,-490.0,0.00028767,3]
[367113036,1750662702060,-1651.87,0.00028767,3]
[367113037,1750662702070,-2465.19,0.00028767,3]
[367113038,1750662702079,-1607.85,0.00028767,3]
[367113039,1750662702089,-1906.99,0.00028767,3]
[367113040,1750662702098,-572.05,0.00028767,3]
[367113041,1750662702109,-1536.26,0.00028767,3]
[367113042,1750662702118,-1920.56,0.00028767,3]
[367113043,1750662702127,-2965.58,0.00028767,3]
[367113044,1750662702138,-1131.73,0.00028767,3]
[367113045,1750662702148,-764.72,0.00028767,3]
[367113046,1750662702161,-3001.5,0.00028767,3]
[367113047,1750662702171,-594.04,0.00028767,3]
[367113048,1750662702181,-490.0,0.00028767,3]
[367113049,1750662702191,-490.0,0.00028767,3]
[367113050,1750662702202,-1385.46,0.00028767,3]
[367113051,1750662702212,-1205.8,0.00028767,3]
[367113052,1750662702222,-490.0,0.00028767,3]
[367113053,1750662702233,-1261.87,0.00028767,3]
[367113054,1750662702242,-5434.37,0.00028767,2]
[367113055,1750662702252,-847.35058327,0.00028865,2]
[367113056,1750662702262,-1258.03765544,0.00028934,20]
[367113057,1750662702272,-339.22393956,0.00028941,2]
[367113058,1750662702283,-1511.09276146,0.00028991,2]
[367113059,1750662702292,-168.0,0.00029,120]
[367113060,1750662702302,-152.0,0.00029,120]
[367113061,1750662702312,-11315.83064791,0.00029,2]
[367113062,1750662702321,-1489.9659949,0.00029,2]
[367113063,1750662702331,-65663.93079317,0.00029,2]
[367113064,1750662702341,-50644.89125592,0.00029,2]
[367113065,1750662702351,-199.12195436,0.00029,2]
[367113066,1750662702361,-156.55,0.0002901,120]
[367113067,1750662702371,-5455.753665,0.00029041,3]
[367113068,1750662702381,-151.476984,0.00029041,3]
[367113069,1750662702391,-490.0,0.00029041,3]
[367113070,1750662702401,-490.0,0.00029041,3]
[367113071,1750662702410,-906.91,0.00029041,3]
[367113072,1750662702420,-490.0,0.00029041,3]
[367113073,1750662702430,-490.0,0.00029041,3]
[367113074,1750662702440,-490.0,0.00029041,3]
[367113075,1750662702450,-733.39,0.00029041,3]
[367113076,1750662702459,-490.0,0.00029041,3]
[367113077,1750662702469,-490.0,0.00029041,3]
[367113078,1750662702479,-490.0,0.00029041,3]
[367113079,1750662702488,-490.0,0.00029041,3]
[367113080,1750662702498,-252.921479,0.00029041,3]
[367113081,1750662702507,-490.0,0.00029041,3]
[367113082,1750662702519,-958.78,0.00029041,3]
[367113083,1750662702529,-972.11,0.00029041,3]
[367113084,1750662702539,-490.0,0.00029041,3]
[367113085,1750662702548,-2591.829598,0.00029041,3]
[367113086,1750662702558,-615.11,0.00029041,3]
[367113087,1750662702567,-804.23,0.00029041,3]
[367113088,1750662702577,-490.0,0.00029041,3]
[367113089,1750662702587,-490.0,0.00029041,3]
[367113090,1750662702597,-490.0,0.00029041,3]
[367113091,1750662702607,-490.0,0.00029041,3]
[367113092,1750662702616,-490.0,0.00029041,3]
[367113093,1750662702625,-490.0,0.00029041,3]
[367113094,1750662702635,-490.0,0.00029041,3]
[367113095,1750662702645,-490.0,0.00029041,3]
[367113096,1750662702655,-525.50218848,0.00029041,3]
[367113097,1750662702665,-1075.31,0.00029041,3]
[367113098,1750662702674,-811.41,0.00029041,3]
[367113099,1750662702684,-663.45,0.00029041,3]
[367113100,1750662702694,-695.49,0.00029041,3]
[367113101,1750662702703,-490.0,0.00029041,3]
[367113102,1750662702714,-490.0,0.00029041,3]
[367113103,1750662702723,-977.66,0.00029041,3]
[367113104,1750662702733,-593.55174394,0.00029041,3]
[367113105,1750662702742,-833.21,0.00029041,3]
[367113106,1750662702752,-591.25,0.00029041,3]
[367113107,1750662702761,-490.0,0.00029041,3]
[367113108,1750662702770,-690.16,0.00029041,3]
[367113109,1750662702779,-1109.36,0.00029041,3]
[367113110,1750662702789,-490.0,0.00029041,3]
[367113111,1750662702798,-490.0,0.00029041,3]
[367113112,1750662702807,-526.92,0.00029041,3]
[367113113,1750662702816,-519.11,0.00029041,3]
[367113114,1750662702826,-490.0,0.00029041,3]
[367113115,1750662702835,-970.12,0.00029041,3]
[367113116,1750662702844,-248.9688355,0.00029041,3]
[367113117,1750662702855,-1478.36,0.00029041,3]
[367113118,1750662702864,-490.0,0.00029041,3]
[367113119,1750662702873,-490.0,0.00029041,3]
[367113120,1750662702883,-490.0,0.00029041,3]
[367113121,1750662702892,-490.0,0.00029041,3]
[367113122,1750662703244,-1376.6,0.00029041,3]
[367113123,1750662703255,-490.0,0.00029041,3]
[367113124,1750662703265,-889.62,0.00029041,3]
[367113125,1750662703274,-490.0,0.00029041,3]
[367113126,1750662703284,-1155.19,0.00029041,3]
[367113127,1750662703295,-490.0,0.00029041,3]
[367113128,1750662703304,-499.94960603,0.00029041,3]
[367113129,1750662703315,-495.01,0.00029041,3]
[367113130,1750662703325,-490.0,0.00029041,3]
[367113131,1750662703335,-668.52,0.00029041,3]
[367113132,1750662703345,-586.16,0.00029041,3]
[367113133,1750662703356,-490.0,0.00029041,3]
[367113134,1750662703366,-698.01,0.00029041,3]